bitfinex-derivatives/quotes_ETHF0:USTF0_20250621
["timestamp","ask_amount","ask_price","bid_price","bid_amount"]
[1750549560606,19.4000563,2239.0,2238.8,3.2078]
[1750549560808,16.9548,2240.3,2238.8,29.84604573]
[1750549561003,19.4000563,2240.0,2239.5,3.2078]
[1750549561213,19.4000563,2238.9,2238.1,3.2078]
[1750549561416,19.4000563,2239.2,2238.8,3.2078]
[1750549561613,19.4000563,2239.2,2238.9,5.7044]
[1750549561819,19.4000563,2239.1,2239.0,3.2078]
[1750549562021,19.4000563,2239.0,2238.6,3.2078]
[1750549562214,19.4000563,2238.7,2238.6,3.2078]
[1750549562720,19.4000563,2238.7,2238.4,4.10103]
[1750549563012,5.8846,2239.0,2238.1,3.2078]
[1750549563013,19.4000563,2238.5,2238.1,3.2078]
[1750549563211,2.23237,2239.2,2237.9,43.2274]
[1750549563212,19.4000563,2238.2,2237.9,3.2078]
[1750549563518,0.89335,2238.2,2237.9,3.2078]
[1750549563711,19.4000563,2238.0,2237.9,4.10125]
[1750549564221,19.4000563,2238.0,2237.9,3.29716949]
[1750549564417,19.4000563,2238.0,2237.9,0.08936949]
[1750549564820,19.4000563,2238.0,2237.9,3.29716949]
[1750549565019,0.89331,2238.3,2237.9,3.29716949]
[1750549565222,19.4000563,2238.0,2237.9,4.19060949]
[1750549565520,19.4000563,2238.0,2237.9,0.08936949]
[1750549565724,19.6286,2238.4,2238.0,0.89338]
[1750549566019,19.4000563,2238.0,2237.9,0.08936949]
[1750549566627,25.0175563,2238.0,2237.9,0.08936949]
[1750549566816,29.1187663,2238.0,2237.9,0.08936949]
[1750549567015,28.2253563,2238.0,2237.6,0.89354]
[1750549567215,19.4000563,2237.7,2237.5,4.10138]
[1750549567919,4.111,2238.5,2237.5,20.6581347]
[1750549568118,17.16675692,2238.1,2237.9,3.2078]
[1750549568316,17.16675692,2237.8,2237.6,3.2078]
[1750549568625,17.16675692,2237.7,2237.6,4.10135]
[1750549569017,6.76382,2238.0,2237.6,4.10135]
[1750549569226,47.173,2238.8,2237.9,3.2078]
[1750549569526,17.16675692,2238.2,2237.9,3.2078]
[1750549569718,17.16675692,2238.2,2237.9,40.6348]
[1750549569921,17.16675692,2238.2,2238.0,0.89338]
[1750549570321,17.16675692,2238.2,2238.1,0.89337]
[1750549570627,17.16675692,2238.2,2238.0,0.89339]
[1750549570920,4.3448,2239.3,2238.2,3.2078]
[1750549571110,4.3945,2240.0,2239.2,3.2078]
[1750549571316,3.2078,2239.6,2238.7,3.2078]
[1750549571516,17.16675692,2238.4,2238.3,4.10105]
[1750549571815,17.16675692,2238.5,2238.4,0.89322]
[1750549572016,17.16675692,2238.6,2238.5,0.89317]
[1750549572222,17.16675692,2239.2,2238.6,2.23293]
[1750549572519,17.16675692,2239.2,2239.1,4.10077]
[1750549572719,7.6023,2240.0,2239.1,4.10077]
[1750549572720,7.6023,2240.0,2239.1,8.2078]
[1750549572920,17.16675692,2239.4,2239.2,3.2078]
[1750549573121,17.16675692,2239.8,2239.2,5.44012]
[1750549573320,17.16675692,2239.6,2239.3,8.89]
[1750549573626,0.89317,2238.6,2238.5,3.2078]
[1750549573824,13.741,2238.6,2238.1,3.2078]
[1750549574024,17.16675692,2238.0,2237.8,3.2078]
[1750549574215,2.23404,2237.5,2236.0,3.2078]
[1750549574522,2.23404,2237.5,2235.2,21.27798117]
[1750549574523,0.89462,2235.0,2233.9,3.2078]
[1750549574723,0.89462,2235.0,2233.2,2.23827]
[1750549574724,13.95895692,2233.8,2233.3,0.45574774]
[1750549575035,13.95895692,2233.8,2232.4,22.97482636]
[1750549575036,3.2078,2231.2,2230.5,17.68397486]
[1750549575321,3.2078,2229.9,2228.9,28.29435978]
[1750549575521,3.2078,2229.6,2229.4,12.4503347]
[1750549575729,3.2078,2230.6,2229.5,46.1114]
[1750549575934,3.2078,2229.6,2229.5,5.5566]
[1750549576116,13.95895692,2230.4,2229.5,9.66117]
[1750549576320,3.2078,2230.7,2230.2,3.2078]
[1750549576516,3.2078,2231.1,2230.5,3.2078]
[1750549576718,3.2078,2231.1,2230.0,3.2078]
[1750549576921,51.4539,2232.8,2229.6,3.2078]
[1750549576922,13.95895692,2230.2,2229.6,3.2078]
[1750549577119,3.2078,2230.9,2229.4,13.755]
[1750549577319,3.2078,2231.7,2230.5,12.4503347]
[1750549577522,13.95895692,2231.6,2231.3,3.2078]
[1750549577723,3.2078,2231.9,2231.4,13.755]
[1750549577919,12.4503347,2232.6,2229.5,4.3695]
[1750549577920,3.2078,2231.3,2229.8,3.2078]
[1750549578123,3.2078,2231.3,2229.5,7.5773]
[1750549578124,3.2078,2230.1,2229.4,3.2078]
[1750549578321,0.89744,2227.9,2227.7,4.47]
[1750549578523,0.89744,2227.9,2223.9,0.37557116]
[1750549578524,3.2078,2225.5,2223.9,3.58337116]
[1750549578739,3.2078,2224.9,2224.1,5.585]
[1750549579027,3.2078,2224.9,2223.9,12.82590586]
[1750549579028,3.2078,2224.8,2223.9,0.37557116]
[1750549579229,3.2078,2224.8,2222.7,4.2182]
[1750549579230,3.2078,2224.4,2222.7,3.2078]
[1750549579438,3.2078,2223.6,2223.2,12.4503347]
[1750549579621,4.24273681,2226.5,2221.4,47.249]
[1750549579622,5.4861,2226.1,2223.7,12.4503347]
[1750549579816,3.2078,2225.6,2224.7,3.2078]
[1750549580029,3.2078,2225.6,2224.8,0.08989572]
[1750549580220,3.2078,2222.1,2220.0,3.2078]
[1750549580416,381.675,2225.5,2220.0,3.2078]
[1750549580417,3.2078,2220.9,2220.0,3.2078]
[1750549580625,3.2078,2223.4,2220.8,3.2078]
[1750549580819,16.47355489,2222.2,2220.9,5.54915358]
[1750549581129,16.47355489,2221.1,2219.0,3.2078]
[1750549581333,3.2078,2221.8,2220.8,3.2078]
[1750549581638,12.49214502,2224.2,2220.8,3.2078]
[1750549581639,3.2078,2222.4,2221.5,3.2078]
[1750549581834,16.47355489,2222.3,2221.6,3.2078]
[1750549582023,16.47355489,2222.1,2221.7,5.4591]
[1750549582224,16.47355489,2221.5,2220.4,4.4609]
[1750549582431,3.2078,2221.2,2220.6,3.2078]
[1750549582626,3.2078,2220.7,2220.5,5.4591]
[1750549582930,3.2078,2221.5,2220.5,8.6669]
[1750549583232,3.2078,2220.6,2219.4,0.06847599]
[1750549583432,3.2078,2220.6,2217.6,4.4609]
[1750549583433,3.2078,2220.1,2218.2,3.2078]
[1750549583629,3.2078,2220.1,2219.0,3.2078]
[1750549583835,3.2078,2219.7,2218.4,3.2078]
[1750549584134,3.2078,2219.7,2217.8,15.69994502]
[1750549584327,19.68135489,2219.7,2218.7,3.2078]
[1750549584533,3.2078,2220.4,2219.4,3.2078]
[1750549584729,3.2078,2220.4,2218.8,58.7788]
[1750549584730,3.2078,2220.4,2219.5,5.8298]
[1750549584928,47.337,2222.5,2219.5,5.8298]
[1750549584929,3.2078,2220.9,2220.3,3.2078]
[1750549585231,16.47355489,2219.8,2218.7,8.3747]
[1750549585437,16.47355489,2220.0,2219.2,3.2078]
[1750549585732,16.47355489,2219.7,2218.7,9.9903]
[1750549585933,3.2078,2218.8,2217.5,3.2078]
[1750549586135,3.2078,2218.8,2215.9,12.49214502]
[1750549586136,16.47355489,2217.8,2216.9,3.2078]
[1750549586437,3.2078,2219.2,2217.5,3.2078]
[1750549586627,5.8898,2219.7,2217.5,53.428]
[1750549586826,3.2078,2219.2,2217.4,3.2078]
[1750549587136,3.2078,2219.2,2218.5,3.2078]
[1750549587323,3.2078,2219.8,2218.7,3.2078]
[1750549587527,5.8898,2220.2,2218.9,3.2078]
[1750549587528,16.47355489,2219.9,2218.9,3.2078]
[1750549587727,3.2078,2220.2,2219.7,3.2078]
[1750549587928,16.47355489,2219.9,2218.7,3.2078]
[1750549588128,16.47355489,2219.4,2218.3,3.2078]
[1750549588333,16.47355489,2220.0,2219.1,3.2078]
[1750549588527,17.37427489,2219.8,2218.7,47.447]
[1750549588830,3.2078,2220.0,2219.3,3.2078]
[1750549589025,3.2078,2220.0,2219.4,5.7868]
[1750549589226,49.69696,2221.6,2219.4,5.7868]
[1750549589227,0.90033,2220.8,2219.8,3.2078]
[1750549589426,19.68135489,2221.0,2219.9,3.2078]
[1750549589622,3.2078,2221.9,2220.9,15.69994502]
[1750549589830,296.547,2225.5,2220.0,5.7868]
[1750549589831,3.2078,2224.0,2222.0,3.2078]
[1750549590130,3.2078,2224.6,2223.7,3.2078]
[1750549590427,2.24571,2225.8,2221.7,4.136]
[1750549590428,16.47355489,2224.5,2223.8,5.7868]
[1750549590625,3.2078,2224.5,2223.8,5.7868]
[1750549590824,0.89889,2224.3,2223.8,8.9946]
[1750549591128,3.2078,2224.7,2224.1,3.2078]
[1750549591329,3.2078,2225.0,2224.4,3.2078]
[1750549591834,0.8985,2225.3,2224.5,5.7604]
[1750549592030,16.47355489,2225.2,2224.5,5.7604]
[1750549592230,3.2078,2225.4,2224.2,3.2078]
[1750549592528,3.2078,2225.4,2224.4,3.2078]
[1750549592731,3.2078,2225.4,2224.3,5.7604]
[1750549592927,16.47355489,2224.5,2223.8,3.2078]
[1750549593428,0.89868,2224.8,2224.4,3.2078]
[1750549593629,3.2078,2224.1,2216.8,296.573]
[1750549593832,3.2078,2220.2,2219.7,5.7604]
[1750549594036,3.2078,2219.9,2219.7,5.7604]
[1750549594233,3.2078,2219.9,2218.8,3.2078]
[1750549594441,3.2078,2219.5,2218.3,5.7604]
[1750549594638,3.2078,2219.2,2218.3,5.7604]
[1750549594833,3.2078,2219.8,2219.0,3.2078]
[1750549595035,3.2078,2220.9,2219.7,12.49214502]
[1750549595234,3.2078,2222.0,2220.8,3.2078]
[1750549595431,3.2078,2222.7,2221.3,3.2078]
[1750549595635,3.2078,2222.7,2221.9,3.2078]
[1750549595832,3.2078,2222.5,2222.0,5.8081]
[1750549596230,3.2078,2222.1,2222.0,5.8081]
[1750549596430,3.2078,2223.1,2222.0,9.0159]
[1750549596642,2.4164,2223.5,2222.8,3.2078]
[1750549596838,3.2078,2223.3,2222.9,53.2591]
[1750549597040,3.2078,2223.7,2223.1,3.2078]
[1750549597234,3.2078,2224.2,2223.3,3.2078]
[1750549597429,3.2078,2224.2,2223.2,65.96114502]
[1750549597741,3.2078,2223.9,2223.2,12.49214502]
[1750549597927,3.2078,2224.2,2223.3,54.34225]
[1750549598132,0.02146015,2223.8,2223.7,0.89912]
[1750549598435,0.02146015,2223.8,2223.7,56.5628]
[1750549598627,0.02146015,2223.8,2223.7,58.355]
[1750549598831,3.2078,2227.0,2225.5,3.2078]
[1750549599038,59.95414502,2230.0,2225.5,3.2078]
[1750549599039,12.81292339,2227.7,2226.8,3.2078]
[1750549599243,12.81292339,2227.7,2227.1,3.2078]
[1750549599437,3.2078,2227.2,2226.5,3.2078]
[1750549599641,0.89806,2226.4,2225.2,53.935]
[1750549599842,3.2078,2226.5,2225.7,3.2078]
[1750549600028,12.81292339,2225.8,2225.4,3.2078]
[1750549600233,12.81292339,2225.8,2225.2,3.2078]
[1750549600234,0.08985937,2225.7,2225.2,3.2078]
[1750549600430,0.06847599,2225.2,2225.1,3.2078]
[1750549600735,0.06847599,2225.2,2225.1,57.1148]
[1750549600936,0.06847599,2225.2,2225.1,8.2078]
[1750549601148,0.06847599,2225.2,2225.1,3.2078]
[1750549601341,0.06847599,2225.2,2225.1,8.2078]
[1750549601534,0.89834,2225.7,2225.1,8.2078]
[1750549601734,3.2078,2225.9,2225.1,3.2078]
[1750549601936,12.81292339,2225.8,2225.3,3.2078]
[1750549602142,0.89834,2225.7,2225.1,53.906]
[1750549602445,3.2078,2225.8,2225.1,53.906]
[1750549602640,3.2078,2227.4,2225.7,15.69994502]
[1750549602841,3.2078,2228.3,2227.2,3.2078]
[1750549603149,12.53283397,2228.1,2227.1,3.2078]
[1750549603351,0.89746,2227.9,2227.2,53.907]
[1750549603640,7.80286,2228.9,2227.2,53.907]
[1750549603641,4.10461,2229.5,2227.8,3.2078]
[1750549603846,0.89685,2229.4,2228.2,0.89728]
[1750549604043,3.2078,2229.8,2228.5,3.2078]
[1750549604243,5.7646,2230.3,2228.3,101.332]
[1750549604443,5.7646,2230.3,2228.7,3.2078]
[1750549604444,12.53283397,2229.5,2228.7,3.2078]
[1750549604744,12.53283397,2229.8,2229.1,3.2078]
[1750549604948,3.2078,2230.7,2229.4,3.2078]
[1750549605246,3.2078,2230.3,2229.5,53.9]
[1750549605543,3.2078,2230.8,2229.5,53.9]
[1750549605748,3.2078,2231.4,2230.3,3.2078]
[1750549605948,12.53283397,2231.2,2230.4,47.432]
[1750549606144,3.2078,2231.4,2230.6,3.2078]
[1750549606344,12.53283397,2230.9,2230.4,101.332]
[1750549606649,12.53283397,2230.5,2230.1,53.9]
[1750549606842,3.2078,2230.7,2229.6,47.402]
[1750549607047,3.2078,2231.5,2230.5,3.2078]
[1750549607241,3.2078,2231.0,2229.9,3.2078]
[1750549607441,18.43903397,2231.4,2230.4,0.8964]
[1750549607646,12.53283397,2231.5,2230.7,3.2078]
[1750549607946,5.9062,2232.7,2230.7,3.2078]
[1750549607947,3.2078,2232.4,2231.2,3.2078]
[1750549608142,12.53283397,2232.2,2231.5,3.2078]
[1750549608346,3.2078,2232.4,2231.5,15.69994502]
[1750549608653,3.2078,2233.2,2232.2,4.10348]
[1750549608842,12.53283397,2233.1,2232.6,3.2078]
[1750549609344,3.2078,2233.2,2232.3,53.866]
[1750549609549,12.53283397,2232.9,2232.1,50.6098]
[1750549609850,12.53283397,2233.1,2232.3,3.2078]
[1750549610055,3.2078,2233.5,2232.6,3.2078]
[1750549610354,12.53283397,2232.7,2232.3,53.826]
[1750549610647,0.08954956,2233.4,2232.7,0.89548]
[1750549610848,0.08954956,2233.4,2232.3,53.826]
[1750549610849,0.08954956,2233.4,2232.8,3.2078]
[1750549611250,0.08954956,2233.4,2232.7,3.2078]
[1750549611549,0.08954956,2233.4,2232.8,3.2078]
[1750549611847,12.53283397,2233.3,2232.6,3.2078]
[1750549612047,12.53283397,2233.0,2232.4,53.68]
[1750549612258,3.2078,2236.5,2234.3,3.2078]
[1750549612455,3.2078,2235.1,2234.5,0.89477]
[1750549612753,3.2078,2235.6,2235.5,0.89438]
[1750549612955,8.8135,2236.5,2235.6,0.89431]
[1750549613158,3.2078,2236.3,2235.5,47.333]
[1750549613351,3.2078,2236.7,2235.7,3.2078]
[1750549613656,0.46823584,2239.0,2235.5,47.333]
[1750549613657,3.2078,2238.9,2236.6,3.2078]
[1750549613842,3.2078,2238.4,2237.3,3.2078]
[1750549614043,3.2078,2237.6,2236.8,0.89386]
[1750549614239,5.8133,2238.8,2236.7,5.6664]
[1750549614240,3.2078,2237.2,2236.7,5.6664]
[1750549614451,3.2078,2237.2,2236.0,51.43496]
[1750549614643,3.2078,2237.5,2236.5,3.2078]
[1750549614843,3.2078,2237.5,2235.1,2.23631]
[1750549614844,4.10176,2236.6,2235.1,0.89452]
[1750549615042,5.8133,2236.5,2235.2,3.2078]
[1750549615240,5.8133,2236.5,2234.9,53.788]
[1750549615241,5.8133,2236.5,2235.5,3.2078]
[1750549615453,3.2078,2236.3,2235.3,5.6664]
[1750549615853,5.8133,2236.5,2235.3,5.6664]
[1750549616046,3.2078,2236.0,2234.7,3.2078]
[1750549616245,3.2078,2236.0,2234.8,53.736]
[1750549616448,5.898,2235.9,2235.0,3.2078]
[1750549616654,5.898,2235.9,2234.7,3.29729747]
[1750549616856,5.898,2235.9,2235.0,3.2078]
[1750549617056,4.10178,2236.5,2235.3,4.10225]
[1750549617251,3.2078,2236.5,2235.6,3.2078]
[1750549617560,3.2078,2236.4,2235.6,3.2078]
[1750549617852,3.2078,2236.3,2235.1,56.9438]
[1750549618249,3.2078,2236.3,2235.2,0.8945]
[1750549618445,5.898,2236.4,2235.4,3.2078]
[1750549618865,5.898,2236.4,2235.7,3.2078]
[1750549619148,0.89382,2236.9,2236.0,3.2078]
[1750549619354,3.2078,2237.2,2236.1,53.709]
[1750549619355,5.9324,2236.8,2236.1,53.709]
[1750549619648,5.9324,2236.8,2236.3,3.2078]
[1750549619848,3.2078,2237.8,2236.3,3.2078]
[1750549620156,4.3231,2238.1,2236.6,3.2078]
[1750549620157,3.2078,2237.5,2236.6,3.2078]
[1750549620355,5.9324,2237.7,2237.1,0.89372]
[1750549620548,5.9324,2237.7,2236.6,50.4718]
[1750549620747,5.9324,2237.7,2236.4,5.6664]
[1750549620748,3.2078,2236.2,2234.7,0.08949747]
[1750549620947,3.2078,2234.8,2233.6,5.6664]
[1750549621145,3.2078,2234.1,2233.7,0.08953753]
[1750549621449,4.47229,2235.4,2233.7,0.08953753]
[1750549621450,5.9324,2234.0,2233.7,0.08953753]
[1750549621643,3.2078,2234.3,2233.7,0.08953753]
[1750549621956,3.2078,2234.0,2233.7,0.08953753]
[1750549622159,5.9724,2233.9,2233.1,3.2078]
[1750549622359,9.1802,2233.9,2233.1,3.2078]
[1750549622659,3.2078,2233.8,2232.7,3.2078]
[1750549622848,5.9724,2233.9,2233.3,0.89523]
[1750549623050,9.1802,2233.9,2233.2,3.2078]
[1750549623251,10.07524,2233.9,2233.2,3.2078]
[1750549623453,0.89528,2233.3,2232.5,0.89556]
[1750549623650,3.2078,2233.7,2233.2,3.2078]
[1750549623852,3.2078,2233.7,2232.7,3.2078]
[1750549624052,3.2078,2233.7,2233.0,3.2078]
[1750549624249,3.2078,2233.8,2232.7,3.2078]
[1750549624554,5.9724,2234.0,2232.7,3.2078]
[1750549624752,3.2078,2235.3,2233.7,3.2078]
[1750549624953,3.2078,2235.2,2234.2,3.2078]
[1750549625149,3.2078,2235.6,2234.5,3.2078]
[1750549625352,3.2078,2234.6,2233.6,3.2078]
[1750549625552,5.7207,2234.5,2233.6,3.2078]
[1750549625754,3.2078,2234.2,2232.5,3.2078]
[1750549626066,3.2078,2233.5,2232.8,0.89542]
[1750549626253,5.7207,2233.4,2232.7,3.2078]
[1750549626755,2.23676,2234.7,2233.2,0.06847599]
[1750549626756,0.89507,2233.8,2233.2,0.06847599]
[1750549626950,5.7207,2233.8,2233.3,3.2078]
[1750549627150,3.2078,2233.7,2233.2,0.06847599]
[1750549627357,5.7207,2233.8,2233.2,0.06847599]
[1750549627546,5.7207,2233.8,2233.3,3.2078]
[1750549627752,5.7207,2233.8,2233.2,0.06847599]
[1750549628256,3.2078,2234.6,2233.4,3.2078]
[1750549628456,5.45,2234.0,2233.6,0.89512]
[1750549628757,5.45,2234.0,2233.4,3.2078]
[1750549629157,3.2078,2235.2,2233.7,3.2078]
[1750549629349,3.2078,2235.2,2233.5,2.23795]
[1750549629350,0.89477,2234.6,2234.0,3.2078]
[1750549629549,2.23609,2235.4,2234.1,0.89493]
[1750549629550,5.45,2234.5,2234.1,0.89493]
[1750549629752,3.2078,2234.3,2233.2,0.06847599]
[1750549629958,5.45,2234.2,2233.2,3.27627599]
[1750549630554,3.2078,2234.6,2233.4,3.2078]
[1750549630762,4.1028,2234.0,2233.2,0.06847599]
[1750549630948,5.45,2233.9,2233.0,3.2078]
[1750549631147,5.45,2233.9,2233.4,3.2078]
[1750549631350,3.2078,2234.6,2233.8,3.2078]
[1750549631548,3.2078,2234.3,2233.7,3.2078]
[1750549631752,3.2078,2234.3,2233.0,3.2078]
[1750549631958,6.8868,2234.2,2233.0,3.2078]
[1750549632161,5.9919,2234.2,2233.6,0.89512]
[1750549632354,3.2078,2234.0,2233.0,3.2078]
[1750549632553,6.88694,2233.9,2233.0,3.2078]
[1750549632753,5.9919,2233.9,2233.3,3.2078]
[1750549632955,3.2078,2233.4,2232.7,9.2066]
[1750549633154,3.2078,2233.7,2232.8,3.2078]
[1750549633362,5.9919,2233.6,2232.8,3.2078]
[1750549633565,5.9919,2233.6,2233.2,0.89526]
[1750549633861,5.9919,2233.6,2233.0,0.89535]
[1750549633862,0.89519,2233.5,2233.0,0.89535]
[1750549634056,5.4757,2233.4,2233.1,3.2078]
[1750549634252,5.4757,2233.4,2233.2,0.89528]
[1750549634452,5.48612198,2234.3,2233.1,3.2078]
[1750549634656,6.37074,2233.9,2233.1,3.2078]
[1750549634854,3.2078,2233.7,2233.2,0.8953]
[1750549635059,7.26545129,2233.6,2233.1,3.2078]
[1750549635261,2.68495129,2233.5,2232.9,0.8954]
[1750549635458,0.87545129,2233.4,2233.3,0.89526]
[1750549635663,5.31608462,2234.8,2234.1,3.2078]
[1750549635964,5.4757,2236.5,2234.7,15.69994502]
[1750549636259,8.11373792,2236.3,2236.2,0.89408]
[1750549636562,3.2078,2237.4,2236.2,3.2078]
[1750549636754,6.89090792,2236.8,2236.5,3.2078]
[1750549637168,6.89090792,2236.6,2236.5,3.2078]
[1750549637464,5.88573792,2236.6,2235.8,3.2078]
[1750549637659,9.1593,2236.5,2235.8,3.2078]
[1750549637963,5.88573792,2236.1,2235.8,4.10204]
[1750549638163,5.9515,2236.5,2235.9,0.8942]
[1750549638358,5.88573792,2235.9,2235.8,3.2078]
[1750549638562,0.8943,2235.8,2235.0,3.2078]
[1750549638868,5.88573792,2235.2,2234.7,3.2078]
[1750549639066,5.9515,2235.8,2235.0,3.2078]
[1750549639265,5.88573792,2234.9,2234.6,3.2078]
[1750549639568,5.88573792,2235.2,2234.6,3.2078]
[1750549639760,5.88573792,2235.2,2234.9,3.2078]
[1750549639962,3.2078,2235.7,2235.1,0.89454]
[1750549640157,5.88573792,2235.5,2234.9,3.2078]
[1750549640362,5.88573792,2235.5,2235.3,0.89445]
[1750549640560,5.88573792,2235.5,2234.9,3.2078]
[1750549640561,3.2078,2235.7,2234.9,3.2078]
[1750549640862,5.88573792,2235.0,2234.2,3.2078]
[1750549641061,5.88573792,2234.7,2234.3,0.89482]
[1750549641260,9.09353792,2234.6,2234.2,3.2078]
[1750549641457,5.88573792,2234.6,2234.4,0.89481]
[1750549641657,3.2078,2235.0,2234.2,3.2078]
[1750549641853,5.88573792,2234.7,2234.3,0.89486]
[1750549642157,5.88573792,2234.7,2234.2,3.2078]
[1750549642158,5.88573792,2234.6,2234.2,4.10268]
[1750549642355,0.89474,2234.6,2234.2,3.2078]
[1750549642558,0.89474,2234.6,2233.2,3.2078]
[1750549642559,9.09353792,2234.3,2233.2,3.2078]
[1750549642762,5.88573792,2233.8,2233.2,3.2078]
[1750549643067,5.88573792,2233.4,2233.2,3.2078]
[1750549643255,5.88573792,2233.3,2233.2,3.2078]
[1750549643458,5.88573792,2233.3,2232.9,5.4386]
[1750549643759,3.2078,2233.5,2232.5,8.8949]
[1750549643964,5.88573792,2232.6,2232.3,3.2078]
[1750549644262,5.88573792,2232.6,2231.6,4.3288]
[1750549644263,5.88573792,2232.2,2231.6,3.2078]
[1750549644462,3.2078,2232.5,2231.7,5.6871]
[1750549644659,5.88573792,2232.6,2231.9,3.2078]
[1750549644963,5.88573792,2232.4,2231.9,4.10361]
[1750549645171,3.2078,2232.8,2231.9,3.2078]
[1750549645172,5.88573792,2232.3,2231.9,3.2078]
[1750549645462,5.88573792,2232.0,2231.2,0.8961]
[1750549645668,5.88573792,2232.0,2230.1,14.73349502]
[1750549645669,3.2078,2230.9,2229.3,3.2078]
[1750549645862,3.2078,2230.9,2223.6,2.309]
[1750549645863,3.2078,2230.4,2228.7,3.2078]
[1750549646160,3.2078,2230.3,2229.3,3.2078]
[1750549646369,5.44726696,2230.1,2229.6,3.2078]
[1750549646563,3.2078,2230.6,2229.7,5.5773]
[1750549646761,5.44726696,2230.3,2229.7,4.63813]
[1750549647163,3.2078,2230.9,2229.8,3.2078]
[1750549647369,5.44726696,2230.7,2230.2,0.89649]
[1750549647662,5.44726696,2230.8,2229.8,3.2078]
[1750549647869,5.44726696,2230.4,2229.9,3.2078]
[1750549648055,5.44726696,2230.8,2229.9,3.2078]
[1750549648259,5.44726696,2230.8,2230.2,0.89647]
[1750549648461,8.8991,2231.3,2230.2,3.2078]
[1750549648756,3.2078,2232.6,2231.2,3.2078]
[1750549648961,3.2078,2232.4,2231.2,55.0048]
[1750549649273,0.89555,2232.6,2231.9,3.2078]
[1750549649274,3.40846696,2232.5,2231.9,3.2078]
[1750549649468,5.6913,2232.7,2231.9,3.2078]
[1750549649667,3.40846696,2232.6,2232.1,0.89572]
[1750549649965,3.40846696,2232.3,2231.9,3.2078]
[1750549650464,3.2078,2232.5,2231.9,3.2078]
[1750549650658,5.6913,2232.7,2231.9,8.9613]
[1750549650864,3.40846696,2232.3,2232.0,3.2078]
[1750549651062,5.4986,2232.7,2232.0,3.2078]
[1750549651357,6.61626696,2232.1,2231.4,54.7578]
[1750549651569,3.40846696,2231.6,2231.4,3.2078]
[1750549651865,3.40846696,2232.0,2231.4,3.2078]
[1750549652068,3.2078,2232.4,2231.7,3.2078]
[1750549652069,3.40846696,2232.4,2231.7,3.2078]
[1750549652272,3.40846696,2231.9,2231.5,5.7535]
[1750549652774,3.2078,2232.4,2231.2,3.2078]
[1750549652974,3.40846696,2232.0,2231.5,3.2078]
[1750549653272,3.40846696,2232.0,2231.3,5.971]
[1750549653769,3.2078,2231.4,2229.4,3.2078]
[1750549653967,3.40846696,2229.5,2229.1,3.2078]
[1750549654183,3.40846696,2230.0,2229.5,0.08970621]
[1750549654369,3.2078,2230.5,2229.7,3.2078]
[1750549654566,3.40846696,2230.3,2230.1,3.2078]
[1750549654762,3.40846696,2230.5,2230.1,3.2078]
[1750549655064,3.40846696,2230.5,2229.5,0.08970621]
[1750549655065,3.40846696,2230.5,2230.4,3.2078]
[1750549655260,3.40846696,2230.5,2229.5,0.08970621]
[1750549655261,3.40846696,2229.6,2229.5,0.08970621]
[1750549655665,8.40846696,2229.6,2229.5,0.08970621]
[1750549655861,5.7823,2229.8,2229.5,0.08970621]
[1750549656072,3.40846696,2230.0,2229.8,0.89665]
[1750549656261,3.2078,2230.4,2229.9,0.08969012]
[1750549656468,3.2078,2230.4,2228.3,2.24318]
[1750549656469,3.2078,2230.0,2229.2,3.2078]
[1750549656772,3.40846696,2229.4,2228.9,3.2078]
[1750549656961,3.2078,2229.2,2228.6,3.2078]
[1750549657164,6.61626696,2228.7,2227.5,3.2078]
[1750549657465,3.40846696,2228.0,2227.7,3.2078]
[1750549657663,5.7823,2228.6,2227.7,3.2078]
[1750549657664,3.40846696,2228.3,2227.8,0.08977466]
[1750549657970,3.40846696,2227.9,2227.8,0.08977466]
[1750549658478,5.7823,2228.2,2227.8,0.08977466]
[1750549658670,3.40846696,2228.0,2227.8,0.08977466]
[1750549658866,4.4138,2229.2,2227.8,0.08977466]
[1750549658867,3.2078,2229.0,2227.8,0.08977466]
[1750549659173,3.40846696,2228.6,2227.9,8.7365]
[1750549659366,3.40846696,2228.6,2228.0,0.0897666]
[1750549659567,5.7503,2228.9,2228.4,3.2078]
[1750549659772,3.2078,2229.9,2228.7,3.2078]
[1750549660074,3.40846696,2228.8,2228.5,3.2078]
[1750549660273,3.40846696,2229.2,2228.6,3.2078]
[1750549660478,3.40846696,2229.2,2228.9,0.89702]
[1750549660673,3.40846696,2229.1,2229.0,0.08972633]
[1750549661072,3.2078,2229.6,2229.0,0.08972633]
[1750549661378,3.40846696,2229.3,2229.1,3.2078]
[1750549661572,3.40846696,2229.2,2229.1,3.2078]
[1750549661778,3.40846696,2229.2,2228.7,5.5287]
[1750549661779,6.61626696,2229.2,2228.7,3.2078]
[1750549661968,3.40846696,2229.1,2228.8,0.08973438]
[1750549662168,6.0048,2229.1,2228.8,0.08973438]
[1750549662377,3.40846696,2228.9,2228.8,0.08973438]
[1750549662579,3.40846696,2229.0,2228.8,0.08973438]
[1750549662879,3.40846696,2228.9,2228.8,0.08973438]
[1750549663171,9.41326696,2228.9,2228.8,0.08973438]
[1750549663372,3.40846696,2228.9,2228.8,0.08973438]
[1750549663573,6.0048,2229.2,2228.8,0.08973438]
[1750549663781,3.40846696,2228.9,2228.8,0.08973438]
[1750549664275,6.0048,2229.2,2228.8,0.08973438]
[1750549664576,3.40846696,2229.0,2228.8,3.2078]
[1750549664773,3.40846696,2229.1,2228.8,3.2078]
[1750549664965,3.40846696,2229.0,2228.5,3.2078]
[1750549665172,3.40846696,2229.0,2228.6,5.5355]
[1750549665371,3.2078,2229.5,2229.0,0.89695]
[1750549665667,4.30557696,2228.7,2227.9,4.1052]
[1750549665866,3.40846696,2228.0,2227.9,3.2078]
[1750549666070,3.40846696,2228.0,2227.5,3.2078]